bitfinex/quotes_BTCUSD_20250619
["timestamp","ask_amount","ask_price","bid_price","bid_amount"]
[1750291201764,0.03348765,105050.0,105030.0,0.15944176]
[1750291202356,0.06221145,105050.0,105030.0,0.15944176]
[1750291203465,0.06221133,105050.0,105030.0,0.15944176]
[1750291205470,0.25259876,105050.0,105040.0,0.19040365]
[1750291205699,0.27545954,105050.0,105040.0,0.34596365]
[1750291205933,0.27545954,105050.0,105040.0,0.34624365]
[1750291206165,0.33514056,105050.0,105040.0,0.34624365]
[1750291206392,0.27545937,105050.0,105040.0,0.34624365]
[1750291207109,0.28507194,105050.0,105040.0,0.40794365]
[1750291207333,0.29449574,105050.0,105040.0,0.41746319]
[1750291207563,0.30401492,105050.0,105040.0,0.41746356]
[1750291207786,0.30401492,105050.0,105040.0,0.42698319]
[1750291208311,0.30401492,105050.0,105040.0,0.42698338]
[1750291208539,0.29449592,105050.0,105040.0,0.43650338]
[1750291209192,0.29449632,105050.0,105040.0,0.42698383]
[1750291209406,0.29449632,105050.0,105040.0,0.43650374]
[1750291209848,0.29449642,105050.0,105040.0,0.43650374]
[1750291210265,0.29449642,105050.0,105040.0,0.44602356]
[1750291210502,0.29449642,105050.0,105040.0,0.45554328]
[1750291210717,0.29449642,105050.0,105040.0,0.45554273]
[1750291212064,0.29449713,105050.0,105040.0,0.45554273]
[1750291212500,0.30411124,105050.0,105040.0,0.45554227]
[1750291212718,0.30693175,105050.0,105040.0,0.45554227]
[1750291212938,0.29741266,105050.0,105040.0,0.55178403]
[1750291213171,0.28789393,105050.0,105040.0,0.55178403]
[1750291214024,0.27837538,105050.0,105040.0,0.55178403]
[1750291214542,0.28789402,105050.0,105040.0,0.55178403]
[1750291214766,0.29741284,105050.0,105040.0,0.55178403]
[1750291214999,0.28789281,105050.0,105040.0,0.55178403]
[1750291215654,0.29741163,105050.0,105040.0,0.55178403]
[1750291215868,0.28789281,105050.0,105040.0,0.55178403]
[1750291216295,0.29741154,105050.0,105040.0,0.55178403]
[1750291216506,0.28789281,105050.0,105040.0,0.55178403]
[1750291216716,0.27837417,105050.0,105040.0,0.55178403]
[1750291216948,0.07837417,105050.0,105040.0,0.55178403]
[1750291217073,0.05551339,105050.0,105040.0,0.55178403]
[1750291217703,0.06503098,105050.0,105040.0,0.55178403]
[1750291217908,0.05551252,105050.0,105040.0,0.55178403]
[1750291219068,0.02678872,105050.0,105040.0,0.55178403]
[1750291219518,0.00893007,105050.0,105040.0,0.55178403]
[1750291219732,0.04733022,105060.0,105050.0,0.28284226]
[1750291219954,0.0746986,105060.0,105050.0,0.37908402]
[1750291220177,0.04967621,105060.0,105050.0,0.37908402]
[1750291221977,0.06871194,105060.0,105050.0,0.53464402]
[1750291222191,0.06871185,105060.0,105050.0,0.53464402]
[1750291222630,0.0936761,105060.0,105050.0,0.53464402]
[1750291222838,0.08415819,105060.0,105050.0,0.53464402]
[1750291223477,0.09367601,105060.0,105050.0,0.53464402]
[1750291225379,0.10319401,105060.0,105050.0,0.53464402]
[1750291225594,0.09366917,105060.0,105050.0,0.53464402]
[1750291226026,0.09366927,105060.0,105050.0,0.53464402]
[1750291226452,0.10318727,105060.0,105050.0,0.53464402]
[1750291226683,0.10318718,105060.0,105050.0,0.53464402]
[1750291227324,0.09366927,105060.0,105050.0,0.53464402]
[1750291227765,0.10318727,105060.0,105050.0,0.53464402]
[1750291229146,0.09366927,105060.0,105050.0,0.53464402]
[1750291229359,0.10318727,105060.0,105050.0,0.53464402]
[1750291229586,0.1031879,105060.0,105050.0,0.53464402]
[1750291230509,0.10317254,105060.0,105050.0,0.53464402]
[1750291230714,0.08533722,105060.0,105050.0,0.53464402]
[1750291231939,0.08533713,105060.0,105050.0,0.53464402]
[1750291232155,0.08533574,105060.0,105050.0,0.53464402]
[1750291232373,0.08533628,105060.0,105050.0,0.53464402]
[1750291234060,0.06630001,105060.0,105050.0,0.53464402]
[1750291235132,0.06630056,105060.0,105050.0,0.53464402]
[1750291235521,0.05678256,105060.0,105050.0,0.53464402]
[1750291235725,0.06630056,105060.0,105050.0,0.53464402]
[1750291235952,0.05678256,105060.0,105050.0,0.53436402]
[1750291236170,0.06630047,105060.0,105050.0,0.53436402]
[1750291236354,0.07581856,105060.0,105050.0,0.53436402]
[1750291236649,0.06630047,105060.0,105050.0,0.53436402]
[1750291237301,0.07581856,105060.0,105050.0,0.53436402]
[1750291237716,0.08533674,105060.0,105050.0,0.53436402]
[1750291238126,0.07581856,105060.0,105050.0,0.53436402]
[1750291238347,0.06630047,105060.0,105050.0,0.53436402]
[1750291238796,0.05678256,105060.0,105050.0,0.53436402]
[1750291239467,0.03774701,105060.0,105050.0,0.53436402]
[1750291239713,0.04726465,105060.0,105050.0,0.53436402]
[1750291240412,0.03774701,105060.0,105050.0,0.53436402]
[1750291240640,0.04726465,105060.0,105050.0,0.53436402]
[1750291241178,0.05678238,105060.0,105050.0,0.53436402]
[1750291241415,0.05678722,105060.0,105050.0,0.53436402]
[1750291241659,0.0089726,105060.0,105050.0,0.53436402]
[1750291242620,5e-05,105060.0,105050.0,0.53436402]
[1750291248412,5e-05,105060.0,105050.0,0.54890487]
[1750291251489,0.10558704,105080.0,105070.0,0.28190059]
[1750291251684,0.09607094,105080.0,105070.0,0.53310235]
[1750291251894,0.05920014,105080.0,105070.0,0.53310235]
[1750291252103,0.08654909,105080.0,105070.0,0.53310235]
[1750291252373,0.24176384,105090.0,105080.0,0.209364]
[1750291252577,3.8112058,105090.0,105080.0,0.21888019]
[1750291253008,3.83533096,105090.0,105080.0,0.21888019]
[1750291253957,3.65453137,105090.0,105080.0,0.23791212]
[1750291254210,3.66404629,105090.0,105080.0,0.30211212]
[1750291254475,3.66687481,105090.0,105080.0,0.30211212]
[1750291255602,0.29079349,105090.0,105080.0,0.30211212]
[1750291255828,0.28127793,105090.0,105080.0,0.30211212]
[1750291257191,0.28110655,105090.0,105080.0,0.30211212]
[1750291257436,0.2906222,105090.0,105080.0,0.30211212]
[1750291258384,0.28110719,105090.0,105080.0,0.28231487]
[1750291258823,0.28110719,105090.0,105080.0,0.27279886]
[1750291259078,0.28110719,105090.0,105080.0,0.28231496]
[1750291260476,0.4715919,105090.0,105080.0,0.28231496]
[1750291260700,0.46207643,105090.0,105080.0,0.42771904]
[1750291261740,0.46207643,105090.0,105080.0,0.43723523]
[1750291262826,0.45256087,105090.0,105080.0,0.41812276]
[1750291263936,0.45256087,105090.0,105080.0,0.41812285]
[1750291264366,0.4792862,105090.0,105080.0,0.42763922]
[1750291264636,0.46977055,105090.0,105080.0,0.42763922]
[1750291265270,0.26977055,105090.0,105080.0,0.42763922]
[1750291265521,0.46977055,105090.0,105080.0,0.42763922]
[1750291265939,0.4747669,105090.0,105080.0,0.42763922]
[1750291266370,0.45195366,105090.0,105080.0,0.42763922]
[1750291267588,0.47476715,105090.0,105080.0,0.42763922]
[1750291268447,0.27476715,105090.0,105080.0,0.42763922]
[1750291268669,0.27476715,105090.0,105080.0,0.41812285]
[1750291269091,0.27476715,105090.0,105080.0,0.42763922]
[1750291270018,0.27477275,105090.0,105080.0,0.42755922]
[1750291270228,0.28146222,105090.0,105080.0,0.42755922]
[1750291270399,0.28146222,105090.0,105080.0,0.4370755]
[1750291271034,0.28146222,105090.0,105080.0,0.44659169]
[1750291274179,0.28147113,105090.0,105080.0,0.44659169]
[1750291274388,0.27206599,105090.0,105080.0,0.54283282]
[1750291274602,0.26537643,105090.0,105080.0,0.54283282]
[1750291274916,0.27489144,105090.0,105080.0,0.54283282]
[1750291275826,0.0558616,105090.0,105080.0,0.54283282]
[1750291275991,0.00892295,105090.0,105080.0,0.54283282]
[1750291276209,0.00897154,105100.0,105090.0,0.28125892]
[1750291276353,0.20897433,105100.0,105090.0,0.37750068]
[1750291276559,0.24671526,105100.0,105090.0,0.37750068]
[1750291277447,0.25622928,105100.0,105090.0,0.37750068]
[1750291277665,0.25622937,105100.0,105090.0,0.37750068]
[1750291277881,0.26574366,105100.0,105090.0,0.37750068]
[1750291278095,0.26574357,105100.0,105090.0,0.37750068]
[1750291278871,0.25622937,105100.0,105090.0,0.37750068]
[1750291279090,0.25622928,105100.0,105090.0,0.37750068]
[1750291279744,0.24730495,105100.0,105090.0,0.37750068]
[1750291279964,0.26573231,105100.0,105090.0,0.37750068]
[1750291280822,0.25621811,105100.0,105090.0,0.37750068]
[1750291281068,0.26573231,105100.0,105090.0,0.37750068]
[1750291281292,0.25621811,105100.0,105090.0,0.37750068]
[1750291282580,0.26573231,105100.0,105090.0,0.37750068]
[1750291282800,0.26573025,105100.0,105090.0,0.37750068]
[1750291283243,0.25621605,105100.0,105090.0,0.37750068]
[1750291283766,0.26573025,105100.0,105090.0,0.37750068]
[1750291283976,0.25621605,105100.0,105090.0,0.37750068]
[1750291284500,0.26573034,105100.0,105090.0,0.37750068]
[1750291284719,0.07524481,105100.0,105090.0,0.37750068]
[1750291284938,0.27505432,105100.0,105090.0,0.36798567]
[1750291285392,0.27505432,105100.0,105090.0,0.37750087]
[1750291285609,0.27505432,105100.0,105090.0,0.38701597]
[1750291285810,0.08475937,105100.0,105090.0,0.39653098]
[1750291286474,0.08475778,105100.0,105090.0,0.39653098]
[1750291286688,0.09427243,105100.0,105090.0,0.39653098]
[1750291287417,0.08475778,105100.0,105090.0,0.39653098]
[1750291287621,0.07524322,105100.0,105090.0,0.39653098]
[1750291287827,0.08475778,105100.0,105090.0,0.39653098]
[1750291288864,0.06572789,105100.0,105090.0,0.39653098]
[1750291289594,0.0562136,105100.0,105090.0,0.39653098]
[1750291289804,0.06572789,105100.0,105090.0,0.39653098]
[1750291290009,0.0562136,105100.0,105090.0,0.39653098]
[1750291290274,0.0657278,105100.0,105090.0,0.39653098]
[1750291290476,0.05681915,105100.0,105090.0,0.39653098]
[1750291290692,0.0657276,105100.0,105090.0,0.39653098]
[1750291291110,0.0562134,105100.0,105090.0,0.39653098]
[1750291291543,0.04730495,105100.0,105090.0,0.39653098]
[1750291291744,0.05621311,105100.0,105090.0,0.39653098]
[1750291293443,0.05621308,105100.0,105090.0,0.39653098]
[1750291294496,0.04669891,105100.0,105090.0,0.39653098]
[1750291296445,0.05621293,105100.0,105090.0,0.39653098]
[1750291296659,0.05621284,105100.0,105090.0,0.39695598]
[1750291296866,0.04669891,105100.0,105090.0,0.39695598]
[1750291298687,0.05621284,105100.0,105090.0,0.39695598]
[1750291299337,0.06572695,105100.0,105090.0,0.39695598]
[1750291300310,0.06572929,105100.0,105090.0,0.39695598]
[1750291300741,0.05621509,105100.0,105090.0,0.39695598]
[1750291300952,0.04670116,105100.0,105090.0,0.39695598]
[1750291301166,0.04730495,105100.0,105090.0,0.39695598]
[1750291301801,0.05621646,105100.0,105090.0,0.39695598]
[1750291302032,0.04670244,105100.0,105090.0,0.39695598]
[1750291302247,0.05621637,105100.0,105090.0,0.39695598]
[1750291302484,0.04670244,105100.0,105090.0,0.39695598]
[1750291303087,0.03779093,105100.0,105090.0,0.39695598]
[1750291303293,0.04670458,105100.0,105090.0,0.39695598]
[1750291304303,0.04670458,105100.0,105090.0,0.59115598]
[1750291305168,0.05621851,105100.0,105090.0,0.59115598]
[1750291305887,0.04670458,105100.0,105090.0,0.59115598]
[1750291308763,0.03779093,105100.0,105090.0,0.59115598]
[1750291309030,0.04671729,105100.0,105090.0,0.59115598]
[1750291311863,0.04671734,105100.0,105090.0,0.59115598]
[1750291312512,0.00897641,105100.0,105090.0,0.59115598]
[1750291312801,5e-05,105100.0,105090.0,0.59115598]
[1750291314916,5e-05,105100.0,105090.0,0.15906676]
[1750291315161,4.1321345,105100.0,105090.0,0.000425]
[1750291315381,4.43464838,105100.0,105090.0,0.000425]
[1750291315620,4.37655614,105100.0,105090.0,0.000425]
[1750291315854,0.19037645,105060.0,105050.0,0.0638]
[1750291316081,0.01903719,105050.0,105040.0,0.28276282]
[1750291316310,0.04759365,105050.0,105040.0,0.53356467]
[1750291316525,0.04759356,105050.0,105040.0,0.53356467]
[1750291316743,0.00951846,105050.0,105040.0,0.53356467]
[1750291316972,0.0190371,105050.0,105040.0,0.53356467]
[1750291317196,0.02855601,105050.0,105040.0,0.53356467]
[1750291317644,0.02855601,105050.0,105040.0,0.37900467]
[1750291317857,0.0190371,105050.0,105040.0,0.53356467]
[1750291318078,0.02855601,105050.0,105040.0,0.53356467]
[1750291318301,0.02855601,105050.0,105040.0,0.37900467]
[1750291318522,0.02855601,105050.0,105040.0,0.53356467]
[1750291318952,0.0380751,105050.0,105040.0,0.53556467]
[1750291319184,0.20942353,105050.0,105040.0,0.15656]
[1750291319404,0.20942353,105050.0,105040.0,0.36600374]
[1750291319637,0.40942353,105050.0,105040.0,0.002]
[1750291319862,0.40942353,105050.0,105040.0,0.15656]
[1750291320090,4.26174579,105050.0,105040.0,0.002]
[1750291320333,4.28135528,105050.0,105040.0,0.15668]
[1750291320778,4.10266253,105050.0,105040.0,0.15668]
[1750291321042,4.10366253,105050.0,105040.0,0.15668]
[1750291321480,4.10266253,105050.0,105040.0,0.15468]
[1750291322190,4.13058262,105050.0,105040.0,0.15468]
[1750291322626,4.13058262,105050.0,105030.0,0.0001]
[1750291322627,0.19992365,105040.0,105030.0,0.0001]
[1750291323073,4.30335676,105040.0,105030.0,0.0001]
[1750291323300,4.32606832,105040.0,105030.0,0.0001]
[1750291323537,4.26637682,105040.0,105030.0,0.0001]
[1750291323761,4.24366526,105040.0,105030.0,0.0001]
[1750291324423,4.24566526,105040.0,105030.0,0.0001]
[1750291324647,4.37126083,105040.0,105030.0,0.0001]
[1750291324842,4.40057011,105040.0,105030.0,0.0001]
[1750291325100,4.41828769,105040.0,105030.0,0.0001]
[1750291325323,4.39392592,105040.0,105030.0,0.0001]
[1750291325557,4.26833035,105040.0,105030.0,0.0001]
[1750291326249,4.29696035,105040.0,105030.0,0.0001]
[1750291326480,4.29496035,105040.0,105030.0,0.0001]
[1750291326703,4.27529526,105040.0,105030.0,0.0001]
[1750291327137,4.22103441,105040.0,105030.0,0.0001]
[1750291327574,4.26107441,105040.0,105030.0,0.0001]
[1750291328057,4.22103441,105040.0,105030.0,0.0001]
[1750291328273,4.26107441,105040.0,105030.0,0.0001]
[1750291328552,4.42176448,105040.0,105030.0,0.0001]
[1750291328783,4.48145598,105040.0,105030.0,0.0001]
[1750291329007,4.23557526,105040.0,105030.0,0.0001]
[1750291329248,4.27561526,105040.0,105030.0,0.0001]
[1750291329676,4.27550862,105040.0,105030.0,0.0001]
[1750291329893,4.16476601,105040.0,105030.0,0.0001]
[1750291330109,4.12468601,105040.0,105030.0,0.0001]
[1750291330981,4.12479256,105040.0,105030.0,0.20956331]
[1750291331200,0.05066954,105040.0,105030.0,0.43590385]
[1750291331430,0.26018954,105040.0,105030.0,0.4454243]
[1750291331650,0.46011337,105040.0,105030.0,0.4454243]
[1750291331881,0.60011337,105040.0,105030.0,0.4454243]
[1750291332593,0.59059374,105040.0,105030.0,0.42638349]
[1750291332814,0.59059374,105040.0,105030.0,0.43590421]
[1750291333258,0.56196374,105040.0,105030.0,0.43590421]
[1750291333703,0.56196374,105040.0,105030.0,0.44542484]
[1750291333918,0.56196374,105040.0,105030.0,0.45494538]
[1750291334202,0.36203991,105040.0,105030.0,0.45494538]
[1750291334425,0.36203991,105040.0,105030.0,0.45494493]
[1750291335311,0.55244356,105040.0,105030.0,0.44542448]
[1750291335543,0.55244356,105040.0,105030.0,0.42638331]
[1750291335807,0.53340365,105040.0,105030.0,0.0616]
[1750291336024,0.53340365,105040.0,105030.0,0.217]
[1750291336356,0.53340365,105040.0,105030.0,0.1555]
[1750291343162,4.11526565,105040.0,105030.0,0.1555]
[1750291343632,4.13800101,105040.0,105030.0,0.1874]
[1750291344067,0.56202665,105040.0,105030.0,0.1874]
[1750291344292,0.57154674,105040.0,105030.0,0.41734268]
[1750291344526,0.57236586,105040.0,105030.0,0.2174]
[1750291344773,0.57236586,105040.0,105030.0,0.40782178]
[1750291344987,0.57236586,105040.0,105030.0,0.22692108]
[1750291345206,0.57236586,105040.0,105030.0,0.41734286]
[1750291345660,0.5990728,105040.0,105030.0,0.41734286]
[1750291346348,0.5990798,105040.0,105030.0,0.41734286]
[1750291346831,0.5990798,105040.0,105030.0,0.22692108]
[1750291347299,0.5990798,105040.0,105030.0,0.41734286]
[1750291348378,0.58127517,105040.0,105030.0,0.22692108]
[1750291348607,0.62743752,105040.0,105030.0,0.22692108]
[1750291349050,0.62743752,105040.0,105030.0,0.41734286]
[1750291349278,0.62746617,105040.0,105030.0,0.41734286]
[1750291350918,0.62746653,105040.0,105030.0,0.41734286]
[1750291351919,0.62746653,105040.0,105030.0,0.2174]
[1750291352136,0.62746679,105040.0,105030.0,0.2174]
[1750291353893,0.62746679,105040.0,105030.0,0.062]
[1750291354100,0.62746679,105040.0,105030.0,0.21748]
[1750291354306,0.65608907,105040.0,105030.0,0.21748]
[1750291354521,0.65609152,105040.0,105030.0,0.21748]
[1750291354944,0.65610963,105040.0,105030.0,0.21748]
[1750291355422,0.65610963,105040.0,105030.0,0.40790178]
[1750291355633,0.65610963,105040.0,105030.0,0.41742286]
[1750291356065,0.65610963,105040.0,105030.0,0.21748]
[1750291356312,0.65610963,105040.0,105030.0,0.40790178]
[1750291356548,0.4466038,105040.0,105030.0,0.43646412]
[1750291356771,0.42756389,105040.0,105030.0,0.54222633]
[1750291356991,0.43708343,105040.0,105030.0,0.54222633]
[1750291357215,0.40874344,105040.0,105030.0,0.54222633]
[1750291357431,0.41826316,105040.0,105030.0,0.54222633]
[1750291357661,0.40874344,105040.0,105030.0,0.54222633]
[1750291357890,0.40574344,105040.0,105030.0,0.54222633]
[1750291358106,0.41526316,105040.0,105030.0,0.54222633]
[1750291358322,0.38790263,105040.0,105030.0,0.54222633]
[1750291358766,0.39742235,105040.0,105030.0,0.54222633]
[1750291359024,0.39942235,105040.0,105030.0,0.54222633]
[1750291359240,0.39942226,105040.0,105030.0,0.54222633]
[1750291359459,0.40894208,105040.0,105030.0,0.54222633]
[1750291359663,0.41846208,105040.0,105030.0,0.54222633]
[1750291359885,0.40894208,105040.0,105030.0,0.54222633]
[1750291360176,0.41846208,105040.0,105030.0,0.54222633]
[1750291360801,0.41847608,105040.0,105030.0,0.54222633]
[1750291361037,0.40895608,105040.0,105030.0,0.54222633]
[1750291361255,0.41847608,105040.0,105030.0,0.54222633]
[1750291363624,0.41847286,105040.0,105030.0,0.54222633]
[1750291364279,0.06895286,105040.0,105030.0,0.54222633]
[1750291364539,0.03725529,105040.0,105030.0,0.54222633]
[1750291364775,0.0400789,105040.0,105030.0,0.54222633]
[1750291366144,0.0475989,105040.0,105030.0,0.54222633]
[1750291366651,0.0380789,105040.0,105030.0,0.54222633]
[1750291367105,0.0475989,105040.0,105030.0,0.54222633]
[1750291367550,0.0475989,105040.0,105030.0,0.54422633]
[1750291368393,0.0380789,105040.0,105030.0,0.54422633]
[1750291369454,0.0475989,105040.0,105030.0,0.54422633]
[1750291370254,0.23800255,105040.0,105030.0,0.51566453]
[1750291370474,0.22848356,105040.0,105030.0,0.53470606]
[1750291371279,0.22848356,105040.0,105030.0,0.55374705]
[1750291371736,0.22848356,105040.0,105030.0,0.5442266]
[1750291372346,0.22848356,105040.0,105030.0,0.55374705]
[1750291373213,0.22848356,105040.0,105030.0,0.51566453]
[1750291373214,0.21896374,105040.0,105030.0,0.51566453]
[1750291373427,0.21896374,105040.0,105030.0,0.53470624]
[1750291373874,0.21896374,105040.0,105030.0,0.54422687]
[1750291374119,0.21896374,105040.0,105030.0,0.55374741]
[1750291374333,0.02856009,105040.0,105030.0,0.55374687]
[1750291374551,0.01903991,105040.0,105030.0,0.55374687]
[1750291375179,0.01903954,105040.0,105030.0,0.55374687]
[1750291375594,0.21896319,105040.0,105030.0,0.55374687]
[1750291375800,0.02855954,105040.0,105030.0,0.55374687]
[1750291376019,0.02855881,105040.0,105030.0,0.55374687]
[1750291376234,0.00951936,105040.0,105030.0,0.55374687]
[1750291377094,0.0190389,105040.0,105030.0,0.55374687]
[1750291377307,0.00951936,105040.0,105030.0,0.55374687]
[1750291378856,0.22274923,105050.0,105040.0,0.2818631]
[1750291378857,0.34,105050.0,105040.0,0.2818631]
[1750291379064,0.34951846,105050.0,105040.0,0.37810486]
[1750291379501,0.34,105050.0,105040.0,0.37810486]
[1750291380344,0.34951864,105050.0,105040.0,0.37810486]
[1750291380786,0.34,105050.0,105040.0,0.37810486]
[1750291380998,0.34951855,105050.0,105040.0,0.37810486]
[1750291381199,0.35151855,105050.0,105040.0,0.37810486]
[1750291381617,0.36103728,105050.0,105040.0,0.37810486]
[1750291382319,0.37055619,105050.0,105040.0,0.37810486]
[1750291382529,0.36103728,105050.0,105040.0,0.37810486]
[1750291383788,0.37055619,105050.0,105040.0,0.37810486]
[1750291384056,0.36103728,105050.0,105040.0,0.37810486]
[1750291384258,0.37055619,105050.0,105040.0,0.37810486]
[1750291384480,0.36103728,105050.0,105040.0,0.37810486]
[1750291385468,0.35151855,105050.0,105040.0,0.37810486]
[1750291385692,0.01151855,105050.0,105040.0,0.37810486]
[1750291386353,0.02103719,105050.0,105040.0,0.37810486]
[1750291387503,0.002,105050.0,105040.0,0.37810486]
[1750291387940,0.01151855,105050.0,105040.0,0.37810486]
[1750291388413,0.002,105050.0,105040.0,0.37810486]
[1750291389074,0.01151846,105050.0,105040.0,0.37810486]
[1750291390495,0.002,105050.0,105040.0,0.37810486]
[1750291394183,0.002,105050.0,105040.0,0.53310486]
[1750291395546,0.002,105050.0,105040.0,0.37810486]
[1750291395764,0.002,105050.0,105040.0,0.53310486]
[1750291396211,0.002,105050.0,105040.0,0.37810486]
[1750291396425,0.002,105050.0,105040.0,0.53310486]
[1750291398774,0.002,105050.0,105040.0,0.53314486]
[1750291401099,0.01151846,105050.0,105040.0,0.53314486]
[1750291401584,0.0210371,105050.0,105040.0,0.53326486]
[1750291402146,0.03055583,105050.0,105040.0,0.53326486]
[1750291402990,0.03055583,105050.0,105040.0,0.37810486]
[1750291403207,0.04959374,105050.0,105040.0,0.53326486]
[1750291403622,0.04959374,105050.0,105040.0,0.53334486]
[1750291404708,0.04959365,105050.0,105040.0,0.53334486]
[1750291405103,0.04007465,105050.0,105040.0,0.53334486]
[1750291406185,0.04959365,105050.0,105040.0,0.53334486]
[1750291406389,0.04959356,105050.0,105040.0,0.53334486]
[1750291406812,0.04007465,105050.0,105040.0,0.53334486]
[1750291407667,0.04959365,105050.0,105040.0,0.53334486]
[1750291407867,0.04959356,105050.0,105040.0,0.53334486]
[1750291408544,0.04959419,105050.0,105040.0,0.53334486]
[1750291408754,0.0495941,105050.0,105040.0,0.53334486]
[1750291409383,0.04959455,105050.0,105040.0,0.53334486]
[1750291409593,0.04959464,105050.0,105040.0,0.53334486]
[1750291409800,0.04959464,105050.0,105040.0,0.37810486]
[1750291410010,0.04959464,105050.0,105040.0,0.53338486]
[1750291410211,0.23998017,105050.0,105040.0,0.53338486]
[1750291410421,0.04959464,105050.0,105040.0,0.53338486]
[1750291410990,0.04959455,105050.0,105040.0,0.53338486]
[1750291411589,0.23046135,105050.0,105040.0,0.53338486]
[1750291411804,0.23998053,105050.0,105040.0,0.53338486]
[1750291412791,0.23998053,105050.0,105040.0,0.52386532]
[1750291413009,0.02855945,105040.0,105030.0,0.26314277]
[1750291413243,0.21896337,105040.0,105030.0,0.52410534]
[1750291413674,0.20944374,105040.0,105030.0,0.34986354]
[1750291413885,0.19992383,105040.0,105030.0,0.52410561]
[1750291414102,0.19992383,105040.0,105030.0,0.53362651]
[1750291414554,0.19992383,105040.0,105030.0,0.53562651]
[1750291414769,0.19992383,105040.0,105030.0,0.54514732]
[1750291414995,0.19992383,105040.0,105030.0,0.55466786]
[1750291414996,0.21896328,105040.0,105030.0,0.55466786]
[1750291415216,0.22848346,105040.0,105030.0,0.55466786]
[1750291415637,0.21896383,105040.0,105030.0,0.42030286]
[1750291415844,0.20944392,105040.0,105030.0,0.0652]
[1750291416060,0.20944392,105040.0,105030.0,0.22036]
[1750291416271,0.20944392,105040.0,105030.0,0.18886]
[1750291416907,0.20944392,105040.0,105030.0,0.37928178]
[1750291417165,0.20944392,105040.0,105030.0,0.4286234]
[1750291417808,0.20944392,105040.0,105030.0,0.43814403]
[1750291418034,0.20944392,105040.0,105030.0,0.44766457]
[1750291418752,4.10268292,105040.0,105030.0,0.1573]
[1750291418975,4.12551803,105040.0,105030.0,0.1573]
[1750291420760,4.12551803,105040.0,105030.0,0.0334]
[1750291420971,4.12551803,105040.0,105030.0,0.18888]
[1750291421189,4.12551803,105040.0,105030.0,0.0649]
[1750291421417,4.12551803,105040.0,105030.0,0.22038]
[1750291422334,4.10268292,105040.0,105030.0,0.22038]
[1750291425327,4.10268292,105040.0,105030.0,0.22034]
[1750291430760,4.10268292,105040.0,105030.0,0.0021]
[1750291430974,4.15501047,105040.0,105030.0,0.15742]
[1750291431190,4.18518045,105040.0,105030.0,0.0021]
[1750291431436,4.343381,105040.0,105030.0,0.0021]
[1750291431656,4.372007,105040.0,105030.0,0.0021]
[1750291431859,4.53654785,105040.0,105030.0,0.0021]
[1750291432290,4.53854835,105040.0,105030.0,0.0001]
[1750291432727,4.53654835,105040.0,105030.0,0.0001]
[1750291433118,4.53954835,105040.0,105030.0,0.0001]
[1750291433335,4.47985685,105040.0,105030.0,0.0001]
[1750291433543,4.47685685,105040.0,105030.0,0.0001]
[1750291433991,4.47885685,105040.0,105030.0,0.0001]
[1750291434201,4.47685685,105040.0,105030.0,0.0001]
[1750291434827,4.48185685,105040.0,105030.0,0.0001]
[1750291435088,4.46625558,105040.0,105030.0,0.0001]
[1750291435297,4.48183812,105040.0,105030.0,0.0001]
[1750291438675,4.48174158,105040.0,105030.0,0.0001]
[1750291438842,4.52202158,105040.0,105030.0,0.0001]
[1750291439072,4.29939211,105040.0,105030.0,0.0001]
[1750291439246,4.17467319,105040.0,105030.0,0.0628]
[1750291439481,4.16576888,105040.0,105030.0,0.0628]
[1750291440541,4.15909065,105040.0,105030.0,0.0628]
[1750291441101,4.16576911,105040.0,105030.0,0.0628]
[1750291442550,4.17467326,105040.0,105030.0,0.0628]
[1750291443171,4.17467369,105040.0,105030.0,0.0628]
[1750291443371,4.17467473,105040.0,105030.0,0.0628]
[1750291444191,4.17467617,105040.0,105030.0,0.0628]
[1750291445274,4.20315333,105040.0,105030.0,0.0628]
[1750291448167,4.17467617,105040.0,105030.0,0.0628]
[1750291448377,4.20315333,105040.0,105030.0,0.0628]
[1750291450570,4.20317118,105040.0,105030.0,0.0628]
[1750291452042,4.18756781,105040.0,105030.0,0.0628]
[1750291452252,4.20317144,105040.0,105030.0,0.0628]
[1750291455213,4.20317331,105040.0,105030.0,0.0628]
[1750291456914,4.2031753,105040.0,105030.0,0.0628]
[1750291457127,4.2031761,105040.0,105030.0,0.0628]
[1750291460926,4.20318153,105040.0,105030.0,0.0628]
[1750291462040,4.39557098,105040.0,105030.0,0.0001]
[1750291462250,4.42580076,105040.0,105030.0,0.0001]
[1750291463832,4.42580098,105040.0,105030.0,0.0001]
[1750291465956,4.36610948,105040.0,105030.0,0.0001]
[1750291466209,4.36610948,105040.0,105030.0,0.0308]
[1750291466453,4.36610948,105040.0,105030.0,0.0613]
[1750291466711,4.35942022,105040.0,105030.0,0.0613]
[1750291466956,4.36611304,105040.0,105030.0,0.0613]
[1750291470190,4.36611255,105040.0,105030.0,0.0613]
[1750291470621,4.40619255,105040.0,105030.0,0.0613]
[1750291471311,4.34909375,105040.0,105030.0,0.0613]
[1750291472457,4.34909283,105040.0,105030.0,0.0613]
[1750291472682,4.34909283,105040.0,105030.0,0.0606]
[1750291473350,4.37764255,105040.0,105030.0,0.0606]
[1750291473828,4.37764232,105040.0,105030.0,0.0606]
[1750291475325,4.3490926,105040.0,105030.0,0.0606]
[1750291475552,4.44524182,105040.0,105030.0,0.0606]
[1750291475797,4.39726847,105040.0,105030.0,0.0606]
[1750291476092,4.40619008,105040.0,105030.0,0.0606]
[1750291476568,4.56107008,105040.0,105030.0,0.0606]
[1750291478458,4.56106899,105040.0,105030.0,0.0606]
[1750291479436,4.56106894,105040.0,105030.0,0.0606]
[1750291481152,4.5610701,105040.0,105030.0,0.0606]
[1750291481367,4.5039713,105040.0,105030.0,0.0606]
[1750291482475,4.5610701,105040.0,105030.0,0.0606]
[1750291482679,4.5039713,105040.0,105030.0,0.0606]
[1750291484078,4.50397247,105040.0,105030.0,0.0606]
[1750291484285,4.50397249,105040.0,105030.0,0.0606]
[1750291485202,4.56107129,105040.0,105030.0,0.0606]
[1750291486586,4.65722051,105040.0,105030.0,0.0606]
[1750291486801,4.36611129,105040.0,105030.0,0.0606]
[1750291487011,4.55429949,105040.0,105030.0,0.0606]
[1750291487241,4.56099348,105040.0,105030.0,0.0606]
[1750291489737,4.590515,105040.0,105030.0,0.0606]
[1750291489971,4.59051968,105040.0,105030.0,0.0606]
[1750291490414,4.6866689,105040.0,105030.0,0.0606]
[1750291491773,4.59051968,105040.0,105030.0,0.0606]
[1750291495648,4.59053008,105040.0,105030.0,0.0606]
[1750291499005,4.59053036,105040.0,105030.0,0.0606]
[1750291501360,4.58159808,105040.0,105030.0,0.0606]
[1750291501593,4.68668008,105040.0,105030.0,0.0606]
[1750291502454,4.83668008,105040.0,105030.0,0.0606]
[1750291502906,4.85122093,105040.0,105030.0,0.0606]
[1750291503769,4.8512212,105040.0,105030.0,0.0606]
[1750291505459,4.85122205,105040.0,105030.0,0.0606]